fUST/lending_fUST_20250210
["ID","MTS","AMOUNT","RATE_DAILY","PERIOD"]
[352608310,1739196640874,-358.55147217,0.00011368,2]
[352608311,1739196640884,-500.0,0.00011368,2]
[352608312,1739196640893,-500.0,0.00011368,2]
[352608313,1739196640903,-500.0,0.00011368,2]
[352608314,1739196640912,-500.0,0.00011369,2]
[352608315,1739196640921,-500.0,0.00011369,2]
[352608316,1739196640930,-373.94114857,0.00011369,2]
[352608317,1739196640939,-585.23,0.00011369,2]
[352608318,1739196640948,-582.26,0.00011369,2]
[352608319,1739196640960,-500.0,0.00011369,2]
[352608320,1739196640970,-500.0,0.00011369,2]
[352608321,1739196640980,-500.0,0.00011369,2]
[352608322,1739196640989,-682.54,0.00011369,2]
[352608323,1739196640998,-500.0,0.00011369,2]
[352608324,1739196641009,-500.0,0.00011369,2]
[352608325,1739196641018,-508.22,0.00011369,2]
[352608326,1739196641027,-500.0,0.00011369,2]
[352608327,1739196641037,-327.43,0.00011369,2]
[352608328,1739196641047,-500.0,0.00011369,2]
[352608329,1739196641056,-500.0,0.00011369,2]
[352608330,1739196641065,-500.0,0.00011369,2]
[352608331,1739196641074,-500.0,0.00011369,2]
[352608332,1739196641084,-500.0,0.00011369,2]
[352608333,1739196641093,-500.0,0.00011369,2]
[352608334,1739196641102,-213.95,0.00011369,2]
[352608335,1739196641111,-500.0,0.00011369,2]
[352608336,1739196641120,-500.0,0.00011369,2]
[352608337,1739196641129,-11703.93,0.00011369,2]
[352608338,1739196641138,-711.7,0.00011369,2]
[352608339,1739196641148,-580.12,0.00011369,2]
[352608340,1739196641157,-556.41,0.00011369,2]
[352608341,1739196641167,-500.0,0.00011369,2]
[352608342,1739196641177,-500.0,0.00011369,2]
[352608343,1739196641187,-500.0,0.00011369,2]
[352608344,1739196641196,-500.0,0.00011369,2]
[352608345,1739196641205,-500.0,0.00011369,2]
[352608346,1739196641214,-500.0,0.00011369,2]
[352608347,1739196641223,-500.0,0.00011369,2]
[352608348,1739196641233,-1065.28,0.00011369,2]
[352608349,1739196641242,-500.0,0.00011369,2]
[352608350,1739196641251,-4941.04,0.00011369,2]
[352608351,1739196641260,-500.0,0.00011369,2]
[352608352,1739196641269,-500.0,0.00011369,2]
[352608353,1739196641278,-560.29,0.00011369,2]
[352608354,1739196641287,-1829.09,0.00011369,2]
[352608355,1739196641296,-500.0,0.00011369,2]
[352608356,1739196641306,-500.0,0.00011369,2]
[352608357,1739196641315,-500.0,0.00011369,2]
[352608358,1739196641324,-500.0,0.00011369,2]
[352608359,1739196641333,-503.07,0.00011369,2]
[352608360,1739196641342,-423.12021039,0.00011369,2]
[352608361,1739196641351,-500.0,0.00011369,2]
[352608362,1739196641361,-2461.35,0.00011369,2]
[352608363,1739196641370,-500.0,0.00011369,2]
[352608364,1739196641379,-1052.97,0.00011369,2]
[352608365,1739196641389,-500.0,0.00011369,2]
[352608366,1739196641399,-500.0,0.00011369,2]
[352608367,1739196641408,-500.0,0.00011369,2]
[352608368,1739196641417,-500.0,0.00011369,2]
[352608369,1739196641429,-500.0,0.00011369,2]
[352608370,1739196641439,-1295.12,0.00011369,2]
[352608371,1739196641448,-500.0,0.00011369,2]
[352608372,1739196641457,-500.0,0.00011369,2]
[352608373,1739196641467,-500.0,0.00011369,2]
[352608374,1739196641476,-1187.4,0.00011369,2]
[352608375,1739196641486,-590.74,0.00011369,2]
[352608376,1739196641496,-500.0,0.00011369,2]
[352608377,1739196641505,-410.79066298,0.00011369,2]
[352608378,1739196641515,-500.0,0.00011369,2]
[352608379,1739196641524,-1398.28,0.00011369,2]
[352608380,1739196641533,-500.0,0.00011369,2]
[352608381,1739196641543,-500.0,0.00011369,2]
[352608382,1739196641552,-1030.08,0.00011369,2]
[352608383,1739196641561,-5594.46,0.00011369,2]
[352608384,1739196641570,-551.54,0.00011369,2]
[352608385,1739196641579,-500.0,0.00011369,2]
[352608386,1739196641588,-663.83,0.00011369,2]
[352608387,1739196641597,-500.0,0.00011369,2]
[352608388,1739196641606,-1381.6,0.00011369,2]
[352608389,1739196641615,-500.0,0.00011369,2]
[352608390,1739196641624,-2401.0,0.00011369,2]
[352608391,1739196641633,-500.0,0.00011369,2]
[352608392,1739196641642,-500.0,0.00011369,2]
[352608393,1739196641651,-500.0,0.00011369,2]
[352608394,1739196641660,-630.64,0.00011369,2]
[352608395,1739196641670,-500.0,0.00011506,2]
[352608396,1739196641680,-500.0,0.00011506,2]
[352608397,1739196641689,-585.23,0.00011506,2]
[352608398,1739196641698,-582.26,0.00011506,2]
[352608399,1739196641707,-500.0,0.00011506,2]
[352608400,1739196641717,-500.0,0.00011506,2]
[352608401,1739196641726,-500.0,0.00011506,2]
[352608402,1739196641735,-682.54,0.00011506,2]
[352608403,1739196641744,-500.0,0.00011506,2]
[352608404,1739196641754,-500.0,0.00011506,2]
[352608405,1739196641764,-508.22,0.00011506,2]
[352608406,1739196641775,-500.0,0.00011506,2]
[352608407,1739196641784,-500.0,0.00011506,2]
[352608408,1739196641794,-500.0,0.00011506,2]
[352608409,1739196641803,-500.0,0.00011506,2]
[352608410,1739196641812,-500.0,0.00011506,2]
[352608411,1739196641821,-500.0,0.00011506,2]
[352608412,1739196641830,-500.0,0.00011506,2]
[352608413,1739196641839,-500.0,0.00011506,2]
[352608414,1739196641850,-500.0,0.00011506,2]
[352608415,1739196641859,-11703.93,0.00011506,2]
[352608416,1739196641868,-711.7,0.00011506,2]
[352608417,1739196641877,-556.41,0.00011506,2]
[352608418,1739196641887,-500.0,0.00011506,2]
[352608419,1739196641896,-500.0,0.00011506,2]
[352608420,1739196641905,-500.0,0.00011506,2]
[352608421,1739196641914,-500.0,0.00011506,2]
[352608422,1739196641924,-500.0,0.00011506,2]
[352608423,1739196642024,-500.0,0.00011506,2]
[352608424,1739196642034,-500.0,0.00011506,2]
[352608425,1739196642044,-1065.28,0.00011506,2]
[352608426,1739196642054,-500.0,0.00011506,2]
[352608427,1739196642063,-4941.04,0.00011506,2]
[352608428,1739196642073,-500.0,0.00011506,2]
[352608429,1739196642082,-500.0,0.00011506,2]
[352608430,1739196642091,-560.29,0.00011506,2]
[352608431,1739196642100,-1829.09,0.00011506,2]
[352608432,1739196642109,-500.0,0.00011506,2]
[352608433,1739196642119,-500.0,0.00011506,2]
[352608434,1739196642128,-500.0,0.00011506,2]
[352608435,1739196642138,-500.0,0.00011506,2]
[352608436,1739196642147,-503.07,0.00011506,2]
[352608437,1739196642157,-2461.35,0.00011506,2]
[352608438,1739196642166,-500.0,0.00011506,2]
[352608439,1739196642178,-1052.97,0.00011506,2]
[352608440,1739196642187,-224.02,0.00011506,2]
[352608441,1739196642197,-500.0,0.00011506,2]
[352608442,1739196642206,-500.0,0.00011506,2]
[352608443,1739196642215,-500.0,0.00011506,2]
[352608444,1739196642224,-500.0,0.00011506,2]
[352608445,1739196642233,-1295.12,0.00011506,2]
[352608446,1739196642243,-500.0,0.00011506,2]
[352608447,1739196642252,-500.0,0.00011506,2]
[352608448,1739196642261,-500.0,0.00011506,2]
[352608449,1739196642270,-1187.4,0.00011506,2]
[352608450,1739196642279,-590.74,0.00011506,2]
[352608451,1739196642288,-500.0,0.00011506,2]
[352608452,1739196642298,-500.0,0.00011506,2]
[352608453,1739196642307,-1398.28,0.00011506,2]
[352608454,1739196642316,-500.0,0.00011506,2]
[352608455,1739196642325,-500.0,0.00011506,2]
[352608456,1739196642335,-1030.08,0.00011506,2]
[352608457,1739196642344,-5594.46,0.00011506,2]
[352608458,1739196642354,-551.54,0.00011506,2]
[352608459,1739196642363,-500.0,0.00011506,2]
[352608460,1739196642372,-663.83,0.00011506,2]
[352608461,1739196642380,-500.0,0.00011506,2]
[352608462,1739196642390,-1381.6,0.00011506,2]
[352608463,1739196642399,-500.0,0.00011506,2]
[352608464,1739196642408,-2401.0,0.00011506,2]
[352608465,1739196642417,-500.0,0.00011506,2]
[352608466,1739196642426,-194.020004,0.00011506,2]
[352608467,1739196642436,-500.0,0.00011506,2]
[352608468,1739196642445,-630.64,0.00011506,2]
[352608469,1739196642454,-263.1710528,0.00011534,2]
[352608470,1739196642463,-268.74750034,0.0001159,2]
[352608471,1739196642472,-585.45216601,0.00011618,2]
[352608472,1739196642482,-150.56066039,0.00011618,2]
[352608473,1739196642491,-500.0,0.00011618,2]
[352608474,1739196642500,-500.86851527,0.00011618,2]
[352608475,1739196642509,-500.0,0.00011618,2]
[352608476,1739196642519,-500.0,0.00011618,2]
[352608477,1739196642528,-621.70952141,0.00011618,2]
[352608478,1739196642537,-386.01861773,0.00011618,2]
[352608479,1739196642546,-626.10567238,0.00011618,2]
[352608480,1739196642555,-500.0,0.00011624,2]
[352608481,1739196642564,-500.0,0.00011624,2]
[352608482,1739196642573,-600.01590705,0.00011624,2]
[352608483,1739196642583,-497.60941393,0.00011634,2]
[352608484,1739196642592,-500.0,0.00011634,2]
[352608485,1739196642601,-500.0,0.00011635,2]
[352608486,1739196642611,-500.0,0.00011635,2]
[352608487,1739196642620,-500.0,0.00011643,2]
[352608488,1739196642629,-585.23,0.00011643,2]
[352608490,1739196642638,-582.26,0.00011643,2]
[352608492,1739196642647,-500.0,0.00011643,2]
[352608493,1739196642656,-500.0,0.00011643,2]
[352608494,1739196642666,-500.0,0.00011643,2]
[352608495,1739196642675,-682.54,0.00011643,2]
[352608496,1739196642686,-500.0,0.00011643,2]
[352608497,1739196642696,-500.0,0.00011643,2]
[352608499,1739196642706,-508.22,0.00011643,2]
[352608500,1739196642715,-500.0,0.00011643,2]
[352608502,1739196642725,-500.0,0.00011643,2]
[352608504,1739196642734,-500.0,0.00011643,2]
[352608506,1739196642743,-500.0,0.00011643,2]
[352608509,1739196642753,-500.0,0.00011643,2]
[352608512,1739196642762,-500.0,0.00011643,2]
[352608514,1739196642771,-500.0,0.00011643,2]
[352608516,1739196642780,-500.0,0.00011643,2]
[352608517,1739196642790,-204.45577899,0.00011643,2]
[352608518,1739196642799,-11703.93,0.00011643,2]
[352608519,1739196642808,-711.7,0.00011643,2]
[352608520,1739196642818,-556.41,0.00011643,2]
[352608521,1739196642827,-500.0,0.00011643,2]
[352608522,1739196642837,-500.0,0.00011643,2]
[352608523,1739196642846,-500.0,0.00011643,2]
[352608524,1739196642855,-500.0,0.00011643,2]
[352608526,1739196642864,-500.0,0.00011643,2]
[352608528,1739196642874,-500.0,0.00011643,2]
[352608530,1739196642883,-1065.28,0.00011643,2]
[352608532,1739196642893,-500.0,0.00011643,2]
[352608534,1739196642902,-4941.04,0.00011643,2]
[352608535,1739196642912,-500.0,0.00011643,2]
[352608537,1739196642921,-500.0,0.00011643,2]
[352608538,1739196642932,-560.29,0.00011643,2]
[352608540,1739196642941,-1829.09,0.00011643,2]
[352608541,1739196642950,-500.0,0.00011643,2]
[352608542,1739196642961,-500.0,0.00011643,2]
[352608543,1739196642970,-500.0,0.00011643,2]
[352608544,1739196642980,-500.0,0.00011643,2]
[352608546,1739196642990,-503.07,0.00011643,2]
[352608547,1739196643000,-2461.35,0.00011643,2]
[352608548,1739196643010,-500.0,0.00011643,2]
[352608549,1739196643020,-1052.97,0.00011643,2]
[352608550,1739196643029,-500.0,0.00011643,2]
[352608551,1739196643039,-500.0,0.00011643,2]
[352608553,1739196643050,-177.8,0.00011643,2]
[352608555,1739196643059,-500.0,0.00011643,2]
[352608557,1739196643068,-1295.12,0.00011643,2]
[352608558,1739196643078,-500.0,0.00011643,2]
[352608559,1739196643087,-500.0,0.00011643,2]
[352608560,1739196643096,-500.0,0.00011643,2]
[352608562,1739196643106,-1187.4,0.00011643,2]
[352608563,1739196643116,-590.74,0.00011643,2]
[352608564,1739196643125,-500.0,0.00011643,2]
[352608565,1739196643135,-500.0,0.00011643,2]
[352608566,1739196643144,-1398.28,0.00011643,2]
[352608567,1739196643154,-500.0,0.00011643,2]
[352608568,1739196643163,-500.0,0.00011643,2]
[352608569,1739196643173,-1030.08,0.00011643,2]
[352608570,1739196643183,-5594.46,0.00011643,2]
[352608571,1739196643193,-551.54,0.00011643,2]
[352608572,1739196643202,-500.0,0.00011643,2]
[352608573,1739196643211,-663.83,0.00011643,2]
[352608574,1739196643221,-500.0,0.00011643,2]
[352608575,1739196643230,-1381.6,0.00011643,2]
[352608576,1739196643239,-500.0,0.00011643,2]
[352608577,1739196643249,-2401.0,0.00011643,2]
[352608578,1739196643258,-500.0,0.00011643,2]
[352608580,1739196643268,-532.59101627,0.00011643,2]
[352608582,1739196643278,-452.58481335,0.0001178,2]
[352608583,1739196643287,-585.23,0.0001178,2]
[352608584,1739196643296,-582.26,0.0001178,2]
[352608585,1739196643305,-500.0,0.0001178,2]
[352608586,1739196643315,-500.0,0.0001178,2]
[352608587,1739196643324,-500.0,0.0001178,2]
[352608588,1739196643334,-682.54,0.0001178,2]
[352608589,1739196643343,-500.0,0.0001178,2]
[352608590,1739196643352,-500.0,0.0001178,2]
[352608591,1739196643361,-508.22,0.0001178,2]
[352608592,1739196643371,-500.0,0.0001178,2]
[352608593,1739196643380,-500.0,0.0001178,2]
[352608594,1739196643390,-500.0,0.0001178,2]
[352608595,1739196643400,-500.0,0.0001178,2]
[352608596,1739196643409,-500.0,0.0001178,2]
[352608597,1739196643418,-500.0,0.0001178,2]
[352608598,1739196643427,-500.0,0.0001178,2]
[352608599,1739196643437,-500.0,0.0001178,2]
[352608600,1739196643446,-11703.93,0.0001178,2]
[352608602,1739196643455,-711.7,0.0001178,2]
[352608604,1739196643464,-556.41,0.0001178,2]
[352608606,1739196643473,-500.0,0.0001178,2]
[352608608,1739196643482,-500.0,0.0001178,2]
[352608610,1739196643492,-492.7,0.0001178,2]
[352608611,1739196643501,-500.0,0.0001178,2]
[352608612,1739196643510,-500.0,0.0001178,2]
[352608613,1739196643519,-500.0,0.0001178,2]
[352608614,1739196643528,-1065.28,0.0001178,2]
[352608615,1739196643537,-218.6098342,0.0001178,2]
[352608616,1739196643547,-4941.04,0.0001178,2]
[352608617,1739196643556,-500.0,0.0001178,2]
[352608618,1739196643565,-500.0,0.0001178,2]
[352608619,1739196643574,-560.29,0.0001178,2]
[352608620,1739196643583,-1829.09,0.0001178,2]
[352608621,1739196643592,-500.0,0.0001178,2]
[352608622,1739196643601,-500.0,0.0001178,2]
[352608623,1739196643610,-267.49,0.0001178,2]
[352608624,1739196643619,-500.0,0.0001178,2]
[352608625,1739196643628,-503.07,0.0001178,2]
[352608626,1739196643637,-2461.35,0.0001178,2]
[352608627,1739196643646,-500.0,0.0001178,2]
[352608628,1739196643656,-1052.97,0.0001178,2]
[352608629,1739196643665,-500.0,0.0001178,2]
[352608630,1739196643674,-500.0,0.0001178,2]
[352608631,1739196643684,-500.0,0.0001178,2]
[352608632,1739196643693,-1295.12,0.0001178,2]
[352608633,1739196643702,-500.0,0.0001178,2]
[352608634,1739196643711,-500.0,0.0001178,2]
[352608635,1739196643721,-500.0,0.0001178,2]
[352608636,1739196643730,-1187.4,0.0001178,2]
[352608637,1739196643740,-590.74,0.0001178,2]
[352608638,1739196643749,-500.0,0.0001178,2]
[352608639,1739196643759,-500.0,0.0001178,2]
[352608640,1739196643770,-1398.28,0.0001178,2]
[352608641,1739196643779,-500.0,0.0001178,2]
[352608642,1739196643788,-500.0,0.0001178,2]
[352608643,1739196643798,-1030.08,0.0001178,2]
[352608644,1739196643807,-5594.46,0.0001178,2]
[352608645,1739196643817,-551.54,0.0001178,2]
[352608646,1739196643826,-500.0,0.0001178,2]
[352608647,1739196643836,-663.83,0.0001178,2]
[352608648,1739196643845,-500.0,0.0001178,2]
[352608649,1739196643855,-1381.6,0.0001178,2]
[352608650,1739196643864,-500.0,0.0001178,2]
[352608651,1739196643873,-2401.0,0.0001178,2]
[352608652,1739196643883,-500.0,0.0001178,2]
[352608653,1739196643892,-500.0,0.000118,2]
[352608654,1739196643902,-500.0,0.000118,2]
[352608655,1739196643911,-500.0,0.000118,2]
[352608656,1739196643921,-500.0,0.000118,2]
[352608657,1739196643930,-500.0,0.000118,2]
[352608658,1739196643941,-500.0,0.000118,2]
[352608659,1739196643950,-278.54427922,0.000118,2]
[352608660,1739196643961,-250.80127485,0.00011805,2]
[352608661,1739196643971,-500.0,0.00011805,2]
[352608662,1739196643981,-254.9811215,0.00011817,2]
[352608663,1739196643991,-501.09183101,0.00011891,2]
[352608664,1739196644002,-1000.0,0.00011909,2]
[352608665,1739196644011,-585.23,0.00011917,2]
[352608666,1739196644021,-582.26,0.00011917,2]
[352608667,1739196644030,-500.0,0.00011917,2]
[352608668,1739196644041,-500.0,0.00011917,2]
[352608669,1739196644050,-500.0,0.00011917,2]
[352608670,1739196644059,-682.54,0.00011917,2]
[352608671,1739196644068,-197.69444533,0.00011917,2]
[352608672,1739196644078,-500.0,0.00011917,2]
[352608673,1739196644087,-508.22,0.00011917,2]
[352608674,1739196644097,-500.0,0.00011917,2]
[352608675,1739196644106,-500.0,0.00011917,2]
[352608676,1739196644115,-500.0,0.00011917,2]
[352608677,1739196644124,-500.0,0.00011917,2]
[352608678,1739196644134,-500.0,0.00011917,2]
[352608679,1739196644143,-500.0,0.00011917,2]
[352608680,1739196644152,-500.0,0.00011917,2]
[352608681,1739196644162,-11703.93,0.00011917,2]
[352608682,1739196644171,-711.7,0.00011917,2]
[352608683,1739196644181,-556.41,0.00011917,2]
[352608684,1739196644190,-500.0,0.00011917,2]
[352608685,1739196644199,-500.0,0.00011917,2]
[352608686,1739196644208,-500.0,0.00011917,2]
[352608687,1739196644217,-500.0,0.00011917,2]
[352608688,1739196644227,-500.0,0.00011917,2]
[352608689,1739196644236,-1065.28,0.00011917,2]
[352608690,1739196644246,-4941.04,0.00011917,2]
[352608691,1739196644255,-412.96,0.00011917,2]
[352608692,1739196644264,-500.0,0.00011917,2]
[352608693,1739196644358,-560.29,0.00011917,2]
[352608694,1739196644368,-1829.09,0.00011917,2]
[352608695,1739196644378,-500.0,0.00011917,2]
[352608696,1739196644387,-500.0,0.00011917,2]
[352608697,1739196644397,-500.0,0.00011917,2]
[352608698,1739196644406,-503.07,0.00011917,2]
[352608699,1739196644415,-2461.35,0.00011917,2]
[352608700,1739196644425,-500.0,0.00011917,2]
[352608701,1739196644435,-1052.97,0.00011917,2]
[352608702,1739196644445,-500.0,0.00011917,2]
[352608703,1739196644454,-500.0,0.00011917,2]
[352608704,1739196644463,-500.0,0.00011917,2]
[352608705,1739196644472,-1295.12,0.00011917,2]
[352608706,1739196644482,-500.0,0.00011917,2]
[352608707,1739196644491,-500.0,0.00011917,2]
[352608708,1739196644500,-500.0,0.00011917,2]
[352608709,1739196644510,-1187.4,0.00011917,2]
[352608710,1739196644519,-590.74,0.00011917,2]
[352608711,1739196644529,-500.0,0.00011917,2]
[352608712,1739196644538,-500.0,0.00011917,2]
[352608713,1739196644548,-1398.28,0.00011917,2]
[352608714,1739196644557,-500.0,0.00011917,2]
[352608715,1739196644567,-500.0,0.00011917,2]
[352608716,1739196644576,-1030.08,0.00011917,2]
[352608717,1739196644585,-5594.46,0.00011917,2]
[352608718,1739196644595,-551.54,0.00011917,2]
[352608719,1739196644605,-254.66862441,0.00011917,2]
[352608720,1739196644615,-663.83,0.00011917,2]
[352608721,1739196644626,-500.0,0.00011917,2]
[352608722,1739196644635,-1381.6,0.00011917,2]
[352608723,1739196644645,-500.0,0.00011917,2]
[352608724,1739196644654,-2401.0,0.00011917,2]
[352608725,1739196644664,-500.0,0.00011917,2]
[352608726,1739196644674,-507.98663694,0.00011985,2]
[352608727,1739196644683,-585.23,0.00012054,2]
[352608728,1739196644693,-582.26,0.00012054,2]
[352608729,1739196644702,-584.4,0.00012054,2]
[352608730,1739196644712,-500.0,0.00012054,2]
[352608731,1739196644721,-500.0,0.00012054,2]
[352608732,1739196644731,-682.54,0.00012054,2]
[352608733,1739196644740,-500.0,0.00012054,2]
[352608734,1739196644750,-508.22,0.00012054,2]
[352608735,1739196644760,-500.0,0.00012054,2]
[352608736,1739196644770,-500.0,0.00012054,2]
[352608737,1739196644780,-500.0,0.00012054,2]
[352608738,1739196644789,-500.0,0.00012054,2]
[352608739,1739196644799,-500.0,0.00012054,2]
[352608740,1739196644809,-500.0,0.00012054,2]
[352608741,1739196644819,-11703.93,0.00012054,2]
[352608742,1739196644829,-711.7,0.00012054,2]
[352608743,1739196644839,-556.41,0.00012054,2]
[352608744,1739196644848,-500.0,0.00012054,2]
[352608745,1739196644858,-500.0,0.00012054,2]
[352608746,1739196644868,-500.0,0.00012054,2]
[352608747,1739196644877,-500.0,0.00012054,2]
[352608748,1739196644887,-500.0,0.00012054,2]
[352608749,1739196644897,-1065.28,0.00012054,2]
[352608750,1739196644908,-4941.04,0.00012054,2]
[352608751,1739196644918,-560.29,0.00012054,2]
[352608752,1739196644928,-500.0,0.00012054,2]
[352608753,1739196644939,-1829.09,0.00012054,2]
[352608754,1739196644949,-500.0,0.00012054,2]
[352608755,1739196644961,-500.0,0.00012054,2]
[352608756,1739196644971,-500.0,0.00012054,2]
[352608757,1739196644981,-503.07,0.00012054,2]
[352608758,1739196644992,-500.0,0.00012054,2]
[352608759,1739196645003,-2461.35,0.00012054,2]
[352608760,1739196645013,-1052.97,0.00012054,2]
[352608761,1739196645023,-500.0,0.00012054,2]
[352608762,1739196645033,-394.98875047,0.00012054,2]
[352608763,1739196645043,-500.0,0.00012054,2]
[352608764,1739196645053,-1295.12,0.00012054,2]
[352608765,1739196645063,-500.0,0.00012054,2]
[352608766,1739196645072,-500.0,0.00012054,2]
[352608767,1739196645082,-500.0,0.00012054,2]
[352608768,1739196645092,-1187.4,0.00012054,2]
[352608769,1739196645101,-590.74,0.00012054,2]
[352608770,1739196645111,-567.62073265,0.00012054,2]
[352608771,1739196645121,-500.0,0.00012054,2]
[352608772,1739196645131,-1398.28,0.00012054,2]
[352608773,1739196645141,-500.0,0.00012054,2]
[352608774,1739196645151,-500.0,0.00012054,2]
[352608775,1739196645160,-1030.08,0.00012054,2]
[352608776,1739196645170,-5594.46,0.00012054,2]
[352608777,1739196645181,-551.54,0.00012054,2]
[352608778,1739196645191,-663.83,0.00012054,2]
[352608779,1739196645201,-500.0,0.00012054,2]
[352608780,1739196645210,-1381.6,0.00012054,2]
[352608781,1739196645221,-500.0,0.00012054,2]
[352608782,1739196645231,-2401.0,0.00012054,2]
[352608783,1739196645240,-500.0,0.00012054,2]
[352608784,1739196645249,-12813.92543969,0.00012077,5]
[352608785,1739196645259,-5077.16345964,0.00012077,5]
[352608786,1739196645269,-43236.69591547,0.00012077,2]
[352608787,1739196645371,-6748.36431412,0.00012077,2]
[352608788,1739196645385,-3075.86748295,0.00012077,2]
[352608789,1739196645397,-57375.11687305,0.00012077,2]
[352608790,1739196645407,-1000.0,0.00012166,2]
[352608791,1739196645417,-1000.0,0.00012166,2]
[352608792,1739196645427,-290.37788818,0.00012166,2]
[352608793,1739196645438,-1031.26523494,0.00012171,2]
[352608794,1739196645448,-822.14791884,0.00012182,2]
[352608795,1739196645458,-502.63900238,0.00012183,2]
[352608796,1739196645468,-1284.52277104,0.00012183,2]
[352608797,1739196645478,-466.68526122,0.00012191,2]
[352608798,1739196645488,-585.23,0.00012191,2]
[352608799,1739196645497,-582.26,0.00012191,2]
[352608800,1739196645508,-500.0,0.00012191,2]
[352608801,1739196645517,-500.0,0.00012191,2]
[352608802,1739196645528,-682.54,0.00012191,2]
[352608803,1739196645538,-500.0,0.00012191,2]
[352608804,1739196645547,-508.22,0.00012191,2]
[352608805,1739196645557,-500.0,0.00012191,2]
[352608806,1739196645568,-500.0,0.00012191,2]
[352608807,1739196645578,-500.0,0.00012191,2]
[352608808,1739196645588,-500.0,0.00012191,2]
[352608809,1739196645598,-500.0,0.00012191,2]
[352608810,1739196645608,-500.0,0.00012191,2]
[352608811,1739196645618,-11703.93,0.00012191,2]
[352608812,1739196645629,-711.7,0.00012191,2]
[352608813,1739196645638,-556.41,0.00012191,2]
[352608814,1739196645648,-500.0,0.00012191,2]
[352608815,1739196645657,-500.0,0.00012191,2]
[352608816,1739196645667,-500.0,0.00012191,2]
[352608817,1739196645677,-500.0,0.00012191,2]
[352608818,1739196645687,-500.0,0.00012191,2]
[352608819,1739196645697,-1065.28,0.00012191,2]
[352608820,1739196645708,-4941.04,0.00012191,2]
[352608821,1739196645718,-500.0,0.00012191,2]
[352608823,1739196645729,-560.29,0.00012191,2]
[352608825,1739196645739,-1829.09,0.00012191,2]
[352608826,1739196645748,-500.0,0.00012191,2]
[352608827,1739196645759,-500.0,0.00012191,2]
[352608828,1739196645768,-500.0,0.00012191,2]
[352608829,1739196645778,-503.07,0.00012191,2]
[352608830,1739196645787,-500.0,0.00012191,2]
[352608831,1739196645798,-2461.35,0.00012191,2]
[352608832,1739196645807,-1052.97,0.00012191,2]
[352608833,1739196645816,-500.0,0.00012191,2]
[352608834,1739196645826,-500.0,0.00012191,2]
[352608835,1739196645836,-1295.12,0.00012191,2]
[352608836,1739196645846,-500.0,0.00012191,2]
[352608838,1739196645856,-500.0,0.00012191,2]
[352608839,1739196645865,-1187.4,0.00012191,2]
[352608840,1739196645875,-590.74,0.00012191,2]
[352608841,1739196645886,-500.0,0.00012191,2]
[352608842,1739196645896,-1398.28,0.00012191,2]
[352608843,1739196645906,-500.0,0.00012191,2]